bitfinex/quotes_ETHUSD_20250827
["timestamp","ask_amount","ask_price","bid_price","bid_amount"]
[1756313463048,1e-08,4643.8,4643.7,9.77290824]
[1756313464139,1e-08,4643.8,4643.7,10.56490824]
[1756313469458,1e-08,4643.8,4643.7,6.86690824]
[1756313469657,1e-08,4643.8,4643.7,8.95845521]
[1756313469961,1e-08,4643.8,4643.7,2.26145521]
[1756313470172,1e-08,4643.8,4643.7,3.805]
[1756313470365,1e-08,4643.8,4643.7,5.95845521]
[1756313470528,1e-08,4643.8,4643.7,9.75045521]
[1756313470732,0.00200001,4643.8,4643.7,10.83285451]
[1756313471035,0.00200001,4643.8,4643.7,11.48021551]
[1756313471735,1e-08,4643.8,4643.7,11.48021551]
[1756313477941,1e-08,4643.8,4643.7,3.99121551]
[1756313478150,1e-08,4643.8,4643.7,5.85045521]
[1756313478347,1e-08,4643.8,4643.7,8.93677921]
[1756313478549,1e-08,4643.8,4643.7,6.72877921]
[1756313478859,1e-08,4643.8,4643.7,6.03177921]
[1756313479071,1e-08,4643.8,4643.7,9.64145521]
[1756313479365,1e-08,4643.8,4643.7,10.82095451]
[1756313480461,1e-08,4643.8,4643.7,7.12495451]
[1756313480661,1e-08,4643.8,4643.7,10.82095451]
[1756313480832,1e-08,4643.8,4643.7,10.92895451]
[1756313483849,1e-08,4643.8,4643.7,7.23295451]
[1756313484050,1e-08,4643.8,4643.7,10.92895451]
[1756313484276,1e-08,4643.8,4643.7,11.69085451]
[1756313484850,1e-08,4643.8,4643.7,11.90685451]
[1756313485256,1e-08,4644.8,4644.6,0.792]
[1756313485470,1e-08,4644.8,4644.7,9.46003581]
[1756313485740,1e-08,4644.8,4644.7,5.00349748]
[1756313485944,1e-08,4644.8,4644.7,3.91699158]
[1756313485945,0.00290001,4644.8,4644.7,3.91699158]
[1756313486141,0.28620001,4644.8,4644.7,1.764]
[1756313486370,0.28620001,4644.8,4644.7,3.804]
[1756313486574,0.00290001,4644.8,4644.7,3.804]
[1756313486775,0.00290001,4644.8,4644.7,3.696]
[1756313486955,0.00290001,4644.8,4644.7,5.95699158]
[1756313487157,0.00290001,4644.8,4644.7,3.804]
[1756313487353,0.00290001,4644.8,4644.7,5.95699158]
[1756313487753,0.00290001,4644.8,4644.7,3.804]
[1756313487951,0.00290001,4644.8,4644.7,5.95699158]
[1756313488278,0.00290001,4644.8,4644.7,3.804]
[1756313488579,0.00290001,4644.8,4644.7,0.108]
[1756313488877,0.00290001,4644.8,4644.7,3.804]
[1756313489078,0.00490001,4644.8,4644.7,0.108]
[1756313489278,0.00490001,4644.8,4644.7,3.804]
[1756313489684,0.00490001,4644.8,4644.7,0.108]
[1756313489898,0.00490001,4644.8,4644.7,3.804]
[1756313490386,0.28820001,4644.8,4644.7,0.108]
[1756313490554,0.28820001,4644.8,4644.7,3.804]
[1756313491075,0.00490001,4644.8,4644.7,3.804]
[1756313492385,0.00200001,4644.8,4644.7,7.29407897]
[1756313492570,0.28810001,4644.8,4644.7,7.00077897]
[1756313492771,0.00200001,4644.8,4644.7,6.74899158]
[1756313492973,0.00200001,4644.8,4644.7,6.93429158]
[1756313493174,0.00200001,4644.8,4644.7,7.40289158]
[1756313497086,0.00200001,4644.8,4644.7,10.40289158]
[1756313500695,0.33696895,4646.5,4644.7,10.40289158]
[1756313500696,0.33696895,4646.5,4645.7,2.15252814]
[1756313500859,0.33696895,4646.5,4645.7,8.51078095]
[1756313501065,0.02,4646.8,4645.7,11.80408095]
[1756313501269,0.02,4646.8,4646.7,2.9440649]
[1756313501475,0.02,4646.8,4646.7,7.5040649]
[1756313501686,0.0229,4646.8,4646.7,7.5040649]
[1756313502163,0.0229,4646.8,4646.7,1.656]
[1756313502364,0.3062,4646.8,4646.7,7.5050649]
[1756313502695,0.0229,4646.8,4646.7,7.5050649]
[1756313502878,0.0257,4646.8,4646.7,7.6130649]
[1756313503258,0.0257,4646.8,4646.7,3.9160649]
[1756313503489,0.0257,4646.8,4646.7,7.6120649]
[1756313503897,0.3062,4646.8,4646.7,5.46]
[1756313504106,0.3062,4646.8,4646.7,1.764]
[1756313504262,0.3062,4646.8,4646.7,5.459]
[1756313504894,2.45821859,4646.8,4646.7,5.459]
[1756313505195,0.55201453,4646.8,4646.7,1.656]
[1756313505495,2.56621957,4646.8,4646.4,3.695]
[1756313505681,0.1337,4646.8,4646.4,3.695]
[1756313506009,0.2805,4646.7,4646.4,3.695]
[1756313506163,0.0084,4646.5,4646.4,3.695]
[1756313506495,0.2862,4646.5,4645.9,1.764]
[1756313506694,2.69499173,4646.5,4646.0,3.695]
[1756313506865,0.2778,4646.4,4646.0,3.695]
[1756313507060,0.0111,4646.1,4645.9,1.764]
[1756313507368,0.0111,4646.1,4646.0,3.695]
[1756313508430,0.2862,4646.1,4645.9,1.764]
[1756313508603,2.42748915,4646.0,4645.9,1.656]
[1756313508803,0.0137,4646.0,4645.9,3.98]
[1756313509298,0.13,4646.8,4645.9,4.4036]
[1756313509497,2.15193177,4647.0,4646.3,2.15224436]
[1756313509702,2.15193177,4647.0,4646.0,2.94438915]
[1756313509703,0.1072,4647.3,4646.6,0.108]
[1756313509866,2.1516434,4647.7,4646.7,3.698]
[1756313510073,2.1516434,4647.7,4645.9,1.656]
[1756313510074,0.0029,4646.8,4646.5,3.698]
[1756313510408,2.15211122,4646.6,4646.5,3.699]
[1756313510604,0.0029,4646.6,4646.5,3.699]
[1756313510898,2.15501122,4646.6,4646.5,3.699]
[1756313511398,0.0029,4646.6,4646.5,3.699]
[1756313511700,2.59611214,4646.9,4646.5,3.699]
[1756313511701,0.4441323,4646.9,4646.5,3.699]
[1756313511877,2.59612376,4646.9,4646.5,3.699]
[1756313512286,2.15202083,4646.8,4646.5,3.699]
[1756313512512,0.0029,4646.6,4646.2,0.108]
[1756313512722,2.15202866,4646.8,4646.3,3.697]
[1756313512877,0.0029,4646.4,4646.2,0.108]
[1756313513277,0.0029,4646.4,4645.9,1.656]
[1756313513482,2.15234282,4646.1,4646.0,3.549]
[1756313513812,2.15243548,4645.9,4645.8,3.695]
[1756313514025,0.0029,4645.9,4645.8,3.695]
[1756313514592,2.15533548,4645.9,4645.8,3.695]
[1756313515120,0.0029,4645.9,4645.8,3.695]
[1756313515415,0.33987965,4645.9,4645.8,3.695]
[1756313516114,0.33697965,4645.9,4645.8,3.695]
[1756313516511,0.33697965,4645.9,4645.8,4.60615572]
[1756313516714,0.33697965,4645.9,4645.8,7.23113753]
[1756313516913,0.33697965,4645.9,4645.8,8.02313753]
[1756313517320,2.2590954,4647.1,4646.2,2.15225367]
[1756313517630,2.15197936,4646.9,4646.5,0.108]
[1756313517794,2.15202678,4646.8,4646.5,0.108]
[1756313518125,0.0029,4646.6,4646.5,3.804]
[1756313518833,2.15501122,4646.6,4646.5,3.696]
[1756313518995,0.0029,4646.6,4646.4,3.696]
[1756313519327,0.0029,4646.6,4646.2,3.696]
[1756313519510,2.15225017,4646.3,4646.2,3.696]
[1756313519739,0.0029,4646.3,4646.1,3.696]
[1756313519914,0.108,4645.7,4644.8,0.02]
[1756313520258,2.15579887,4644.9,4644.8,0.02]
[1756313520412,5.58666166,4644.9,4644.8,0.02]
[1756313520764,5.58666166,4644.9,4643.6,0.001]
[1756313520765,7.24076279,4644.9,4643.6,0.001]
[1756313520907,3.0,4644.8,4643.6,0.001]
[1756313521242,2.26136247,4643.9,4643.6,0.001]
[1756313521447,0.1109,4643.9,4643.6,0.001]
[1756313521646,0.108,4644.2,4643.8,0.3166]
[1756313521803,0.108,4644.2,4643.8,0.001]
[1756313522005,2.261224,4644.2,4643.8,0.001]
[1756313522342,2.15327018,4644.1,4643.8,0.001]
[1756313522654,0.108,4644.2,4643.8,0.001]
[1756313522936,0.108,4644.2,4643.9,0.4725]
[1756313523105,2.49011835,4644.7,4644.0,3.701]
[1756313523304,2.49011835,4644.7,4643.8,0.001]
[1756313523305,2.15322337,4644.2,4643.8,0.001]
[1756313523540,0.0029,4643.9,4643.8,0.001]
[1756313523705,2.26426247,4643.9,4643.8,0.001]
[1756313524356,5.60141806,4643.9,4643.8,0.001]
[1756313525620,5.60141806,4643.9,4642.8,1.664]
[1756313525621,2.15352337,4643.6,4643.3,0.001]
[1756313525804,5.15359434,4643.4,4643.3,0.001]
[1756313526001,5.26449434,4643.4,4643.3,0.001]
[1756313526436,2.60171439,4643.4,4643.3,0.001]
[1756313528044,2.26449434,4643.4,4643.3,0.001]
[1756313528249,5.26449434,4643.4,4643.3,0.001]
[1756313531226,5.60171433,4643.4,4643.3,0.001]
[1756313533829,5.59881433,4643.4,4643.3,0.001]
[1756313534416,0.44521999,4643.4,4643.3,0.7891]
[1756313534853,0.108,4643.4,4643.3,0.7891]
[1756313535368,2.15349848,4643.7,4643.3,0.7891]
[1756313535659,2.15326974,4644.1,4643.3,0.7891]
[1756313535836,2.15339861,4643.9,4643.4,0.5805]
[1756313536043,2.26135734,4644.0,4643.4,0.5805]
[1756313536232,2.2613161,4644.0,4643.9,0.3156]
[1756313536428,0.108,4644.0,4643.4,0.5805]
[1756313536631,2.15340884,4643.8,4643.3,0.001]
[1756313536831,2.15359434,4643.4,4643.3,0.001]
[1756313537028,0.108,4643.5,4643.3,0.001]
[1756313537233,2.26154797,4643.5,4643.3,0.001]
[1756313537562,2.15359434,4643.4,4643.3,0.001]
[1756313540359,2.37306074,4643.4,4643.3,0.001]
[1756313540517,2.15364072,4643.3,4642.8,0.021]
[1756313540722,2.15382627,4642.9,4642.8,0.021]
[1756313540923,5.86672627,4642.9,4642.8,0.021]
[1756313541352,5.49397234,4642.9,4642.8,0.021]
[1756313541564,9.30907234,4642.9,4642.8,0.021]
[1756313541867,10.02587234,4642.9,4642.8,0.021]
[1756313542548,10.02877234,4642.9,4642.8,0.021]
[1756313543624,11.68577234,4642.9,4641.8,0.02]
[1756313543825,2.26229026,4641.9,4641.8,0.02]
[1756313544022,2.47885666,4641.9,4641.8,0.02]
[1756313544257,2.48175666,4641.9,4641.6,0.001]
[1756313544435,2.15438309,4641.7,4641.6,1e-08]
[1756313544736,2.15438309,4641.7,4640.0,0.4428]
[1756313544737,2.15471451,4641.0,4640.7,0.4428]
[1756313545029,2.15471451,4641.0,4640.0,0.108]
[1756313545030,2.15477196,4640.9,4640.8,0.4428]
[1756313545230,2.26277196,4640.9,4640.8,0.7412]
[1756313546549,2.15498582,4640.5,4640.2,0.4428]
[1756313546865,2.15487904,4640.7,4640.4,0.2984]
[1756313547066,2.15487904,4640.7,4640.5,0.4428]
[1756313547228,0.54974533,4640.9,4640.0,0.108]
[1756313547429,2.15476089,4640.9,4640.6,0.2984]
[1756313547628,0.108,4640.7,4640.6,0.2984]
[1756313548041,2.26284732,4640.7,4640.6,0.2984]
[1756313548359,2.60020186,4640.7,4640.6,0.7412]
[1756313548872,2.15489376,4640.6,4639.8,1.765]
[1756313549078,3.0,4640.4,4638.5,0.086421]
[1756313549230,0.108,4639.4,4638.6,0.4428]
[1756313549552,3.71,4640.5,4638.6,0.4428]
[1756313549553,0.108,4639.0,4638.6,0.4428]
[1756313549868,0.108,4639.0,4638.9,0.2984]
[1756313550067,0.108,4639.0,4637.9,3.81314007]
[1756313550068,0.108,4639.0,4637.8,0.02]
[1756313550362,0.108,4638.7,4637.9,0.5508]
[1756313550564,0.108,4638.9,4638.6,0.2984]
[1756313550745,0.108,4638.9,4638.7,0.4428]
[1756313551145,0.108,4638.9,4638.8,0.7412]
[1756313552268,2.26368345,4638.9,4638.3,0.108]
[1756313552437,2.26368345,4638.9,4638.2,1.657]
[1756313552638,2.15578234,4638.7,4638.2,1.657]
[1756313552974,0.108,4638.9,4638.6,0.2984]
[1756313553335,0.108,4638.9,4638.7,0.4428]
[1756313553537,0.33748294,4639.1,4638.7,0.4428]
[1756313553854,0.33748294,4639.1,4639.0,0.2984]
[1756313554054,2.15570656,4638.9,4638.7,0.108]
[1756313554268,2.15570656,4638.9,4638.8,0.7412]
[1756313554269,0.108,4638.9,4638.8,0.7412]
[1756313554836,0.33748294,4639.1,4638.8,0.7412]
[1756313555034,0.33748294,4639.1,4638.9,0.4428]
[1756313555538,0.33748294,4639.1,4639.0,0.7412]
[1756313556034,0.33748294,4639.1,4639.0,0.8492]
[1756313556235,0.33748294,4639.1,4639.0,0.7412]
[1756313556443,3.733,4640.6,4639.0,0.7412]
[1756313556666,0.108,4639.4,4638.8,0.108]
[1756313556870,2.15517144,4640.1,4638.7,0.4428]
[1756313557036,0.108,4639.2,4638.7,0.4428]
[1756313557244,2.26354878,4639.2,4638.8,0.4428]
[1756313557451,0.108,4639.2,4638.9,0.4428]
[1756313557646,2.15565128,4639.0,4638.5,0.108]
[1756313557850,0.3940764,4639.0,4637.9,0.4428]
[1756313558066,0.108,4638.3,4637.9,0.4428]
[1756313558283,0.108,4638.3,4638.2,0.2984]
[1756313558579,0.108,4638.3,4638.2,0.7412]
[1756313559364,2.15541281,4639.5,4638.6,2.15579417]
[1756313559662,0.44548841,4639.3,4638.7,0.4428]
[1756313560383,2.15562525,4639.1,4638.7,0.4428]
[1756313560572,0.33748841,4639.3,4639.0,0.2984]
[1756313560773,0.33748841,4639.3,4639.2,2.15554405]
[1756313561003,0.33748841,4639.3,4639.2,0.7412]
[1756313561684,0.33748841,4639.3,4639.2,2.89674405]
[1756313562058,0.002,4639.7,4639.3,2.15546606]
[1756313562253,0.002,4639.7,4639.6,0.2984]
[1756313562687,0.002,4639.7,4639.6,0.7412]
[1756313562998,2.15731176,4639.7,4639.6,0.2984]
[1756313563156,0.002,4639.7,4639.3,0.108]
[1756313563361,0.002,4639.7,4639.3,0.5508]
[1756313563662,0.002,4639.7,4639.6,0.2984]
[1756313564086,0.002,4639.7,4639.6,0.7412]
[1756313564658,0.002,4639.7,4639.6,0.8492]
[1756313565182,0.33940235,4639.7,4639.6,0.8492]
[1756313565402,0.33940235,4639.7,4639.6,3.00455822]
[1756313565597,0.33940235,4639.7,4639.6,7.20455898]
[1756313565889,0.002,4640.2,4640.1,2.94712596]
[1756313566184,0.002,4640.2,4640.1,11.34612596]
[1756313566389,0.002,4640.2,4640.1,12.19532596]
[1756313567892,0.002,4640.2,4640.1,12.19432596]
[1756313568062,0.002,4640.2,4640.1,14.33758114]
[1756313568986,1e-08,4640.2,4640.1,14.33758114]
[1756313571467,1e-08,4640.2,4640.1,14.33258114]
[1756313573295,1e-08,4640.2,4640.1,14.44058114]
[1756313573536,1e-08,4640.2,4640.1,9.47078114]
[1756313573797,1e-08,4640.2,4640.1,11.40592596]
[1756313574006,1e-08,4640.2,4640.1,12.30592596]
[1756313574970,1e-08,4640.2,4640.1,8.57292596]
[1756313575169,1e-08,4640.2,4640.1,8.11952596]
[1756313575406,1e-08,4640.2,4640.1,12.20692596]
[1756313575571,1e-08,4640.2,4640.1,13.64313798]
[1756313575762,1e-08,4640.2,4640.1,9.90113798]
[1756313575961,1e-08,4640.2,4640.1,13.64313798]
[1756313577082,1e-08,4640.2,4640.1,13.64213798]
[1756313578564,1e-08,4640.2,4640.1,9.90113798]
[1756313578765,1e-08,4640.2,4640.1,13.64113798]
[1756313579802,1e-08,4640.2,4640.1,9.44773798]
[1756313579988,1e-08,4640.2,4640.1,11.45012596]
[1756313580188,1e-08,4640.2,4640.1,12.20432596]
[1756313580902,1e-08,4640.2,4640.1,8.46732596]
[1756313581067,1e-08,4640.2,4640.1,12.20332596]
[1756313583309,0.002,4640.7,4640.6,2.94689376]
[1756313583509,0.002,4641.2,4641.1,0.792]
[1756313583743,0.002,4641.2,4641.1,9.50634661]
[1756313583902,0.02,4641.8,4641.1,9.50634661]
[1756313583903,0.02,4641.8,4641.7,5.94638309]
[1756313584110,0.02,4641.8,4641.7,9.79038309]
[1756313584321,0.02,4641.8,4641.7,10.54458309]
[1756313584507,0.02,4641.8,4641.7,11.81448654]
[1756313585809,0.02,4641.8,4641.7,11.05728654]
[1756313586547,0.02,4641.8,4641.7,11.97393865]
[1756313586928,0.02,4641.8,4641.7,7.48673865]
[1756313587095,0.0234,4641.8,4641.7,11.21973865]
[1756313587828,0.3588,4641.8,4641.7,3.841]
[1756313588398,0.3588,4641.8,4641.7,0.108]
[1756313588620,0.3588,4641.8,4641.7,3.84]
[1756313588937,0.0234,4641.8,4641.7,5.99438309]
[1756313589240,0.0234,4641.8,4641.7,3.84]
[1756313589637,0.3588,4641.8,4641.7,3.84]
[1756313589841,0.3588,4641.8,4641.7,0.108]
[1756313590228,0.3588,4641.8,4641.7,5.496]
[1756313590407,0.3588,4641.8,4641.7,0.108]
[1756313590611,0.3588,4641.8,4641.7,5.495]
[1756313591007,0.0234,4641.8,4641.7,7.64938309]
[1756313591634,0.02,4641.8,4641.7,7.64938309]
[1756313592057,0.3334,4641.8,4641.7,7.64938309]
[1756313593770,0.3334,4641.8,4641.7,7.64838309]
[1756313593952,0.3334,4641.8,4641.7,5.494]
[1756313594659,0.3334,4641.8,4641.7,7.64838309]
[1756313594954,0.3334,4641.8,4641.7,5.492]
[1756313595271,0.3334,4641.8,4641.7,5.49]
[1756313595567,2.51623667,4641.8,4641.7,0.108]
[1756313595752,2.98328654,4641.8,4641.7,3.832]
[1756313595941,2.98328654,4641.8,4641.7,3.724]
[1756313596155,3.09128654,4641.8,4641.7,3.724]
[1756313596571,2.15439524,4641.7,4641.0,1.657]
[1756313596736,2.15455661,4641.4,4641.1,3.724]
[1756313596931,0.296,4641.2,4641.0,1.657]
[1756313597133,0.296,4641.2,4641.1,1.868]
[1756313597441,0.108,4641.6,4641.1,1.868]
[1756313597641,0.108,4641.6,4641.1,4.02264108]
[1756313597843,0.022,4641.8,4641.2,3.725]
[1756313598057,0.13,4641.8,4641.2,3.725]
[1756313598521,0.022,4641.8,4641.3,0.108]
[1756313598934,0.0034,4641.4,4641.3,0.108]
[1756313599253,0.0034,4641.4,4641.3,3.724]
[1756313600368,0.3574,4641.8,4641.3,3.724]
[1756313600369,0.022,4641.8,4641.5,2.15446062]
[1756313600573,0.33728986,4641.7,4641.6,3.724]
[1756313600866,0.33728986,4641.7,4641.6,5.8784295]
[1756313601084,0.0034,4641.7,4641.6,0.108]
[1756313601456,0.55676913,4641.7,4641.6,0.108]
[1756313601776,0.0034,4641.7,4641.6,3.834]
[1756313602067,0.0034,4641.7,4641.6,3.726]
[1756313603271,0.0034,4641.7,4641.3,0.108]
[1756313603451,0.0034,4641.7,4641.4,3.724]
[1756313603772,0.0034,4641.7,4641.3,0.108]
[1756313603931,0.0034,4641.7,4641.0,1.657]
[1756313603932,2.15457761,4641.3,4641.0,1.657]
[1756313604139,0.0457,4641.2,4641.1,3.723]
[1756313604445,2.15466161,4641.1,4641.0,1.657]
[1756313604645,2.15466161,4641.1,4640.8,0.02]
[1756313604646,2.15475446,4640.9,4640.8,0.02]
[1756313604977,2.73866253,4640.9,4640.8,0.02]
[1756313605161,2.55385446,4640.9,4640.8,0.02]
[1756313605473,5.60445446,4640.9,4640.8,0.02]
[1756313605895,5.55385446,4640.9,4640.8,0.02]
[1756313606098,5.60445446,4640.9,4640.8,0.02]
[1756313606378,6.26925175,4640.9,4640.8,0.02]
[1756313606552,3.26925175,4640.9,4640.8,0.02]
[1756313606947,3.31985175,4640.9,4640.8,0.02]
[1756313607148,1.11449729,4640.9,4640.8,0.02]
[1756313607364,2.55385446,4640.9,4640.8,0.02]
[1756313608146,2.60445446,4640.9,4640.8,0.02]
[1756313608660,2.94182316,4640.9,4640.8,0.02]
[1756313610677,2.89122316,4640.9,4640.8,0.02]
[1756313611545,2.94182316,4640.9,4640.8,0.02]
[1756313611866,3.45147398,4640.9,4640.8,0.02]
[1756313612276,3.40087398,4640.9,4640.8,0.02]
[1756313612499,3.45147398,4640.9,4640.8,0.02]
[1756313613286,6.45147398,4640.9,4640.8,0.02]
[1756313614222,6.34347398,4640.9,4640.8,0.02]
[1756313614421,6.40087398,4640.9,4640.8,0.02]
[1756313614712,6.40087398,4640.9,4640.8,0.021]
[1756313615137,6.45147398,4640.9,4640.8,0.021]
[1756313615417,6.11410528,4640.9,4640.8,0.021]
[1756313615583,6.06350528,4640.9,4640.8,0.021]
[1756313616386,3.06350528,4640.9,4640.8,0.021]
[1756313619393,3.40088128,4640.9,4640.8,0.021]
[1756313620691,3.10978128,4640.9,4640.8,0.021]
[1756313620915,3.10978128,4640.9,4640.8,0.3137]
[1756313621134,3.10978128,4640.9,4640.8,0.021]
[1756313621337,3.39848128,4640.9,4640.8,0.021]
[1756313621823,3.45148128,4640.9,4640.8,0.021]
[1756313622023,3.39848128,4640.9,4640.8,0.021]
[1756313622530,3.39848128,4640.9,4640.8,0.3137]
[1756313622531,0.445376,4640.9,4640.8,0.3137]
[1756313622702,0.002,4641.2,4640.8,0.772]
[1756313622892,0.002,4641.2,4641.0,2.15469506]
[1756313623091,0.002,4641.2,4641.0,2.15470803]
[1756313623299,0.002,4641.2,4641.1,3.19833241]
[1756313623700,0.002,4641.2,4641.1,6.91633241]
[1756313623926,0.002,4641.2,4641.1,3.19833241]
[1756313624130,0.002,4641.2,4641.1,6.91633241]
[1756313626330,0.002,4641.2,4641.1,7.70833241]
[1756313627220,0.002,4641.2,4641.1,3.99033241]
[1756313627413,0.002,4641.2,4641.1,7.70433241]
[1756313629235,0.002,4641.2,4641.1,6.61966161]
[1756313629613,0.002,4641.2,4641.1,2.90566161]
[1756313629798,0.002,4641.2,4641.1,6.61766161]
[1756313630132,0.002,4641.2,4641.1,4.463]
[1756313630435,0.002,4641.2,4641.1,6.15766161]
[1756313630600,0.002,4641.2,4641.1,7.44530274]
[1756313631522,0.002,4641.2,4641.1,7.44630274]
[1756313631709,0.002,4641.2,4641.1,6.15866161]
[1756313631910,0.002,4641.2,4641.1,2.90096161]
[1756313632115,0.002,4641.2,4641.1,6.61196161]
[1756313632752,0.002,4641.2,4641.1,7.51196161]
[1756313633050,0.002,4641.2,4641.1,2.55466161]
[1756313633213,0.002,4641.2,4641.1,0.108]
[1756313633537,2.1600152,4641.2,4641.1,3.711]
[1756313633742,0.22140152,4641.2,4641.1,3.711]
[1756313634612,2.3760167,4641.2,4641.1,3.711]
[1756313634845,0.22140152,4641.2,4640.8,0.021]
[1756313635052,0.108,4640.9,4640.8,0.021]
[1756313635354,2.26275446,4640.9,4640.8,0.021]
[1756313635509,2.88351006,4640.9,4640.8,0.021]
[1756313635908,2.55141006,4640.9,4640.8,0.021]
[1756313636157,2.88351006,4640.9,4640.8,0.021]
[1756313637708,5.88351006,4640.9,4640.8,0.021]
[1756313638249,12.94351006,4640.9,4640.8,0.021]
[1756313638408,16.65251006,4640.9,4640.8,0.021]
[1756313639243,16.989903,4640.9,4640.8,0.021]
[1756313640548,12.948803,4640.9,4640.8,0.021]
[1756313640848,12.6668474,4640.9,4640.8,0.021]
[1756313641420,12.6601474,4640.9,4640.8,0.021]
[1756313642638,12.6701474,4640.9,4640.8,0.021]
[1756313642844,12.9990474,4640.9,4640.8,0.021]
[1756313643149,12.6701474,4640.9,4640.8,0.021]
[1756313643321,13.71641228,4640.9,4640.8,0.021]
[1756313644454,3.0,4640.8,4640.1,0.001]
[1756313644741,2.15507952,4640.2,4640.1,0.001]
[1756313644952,8.98427952,4640.2,4640.1,0.001]
[1756313645154,16.36997952,4640.2,4640.1,1e-08]
[1756313645354,2.15521886,4639.9,4639.8,1e-08]
[1756313645683,5.26321886,4639.9,4639.8,1e-08]
[1756313645823,9.41666071,4639.9,4639.8,1e-08]
[1756313646328,9.31021886,4639.9,4639.8,1e-08]
[1756313647160,3.0,4639.8,4639.1,0.001]
[1756313647362,9.31021886,4639.9,4639.1,0.001]
[1756313647363,5.15535822,4639.6,4639.1,0.001]
[1756313647564,2.15554405,4639.2,4639.1,0.001]
[1756313647865,8.99084405,4639.2,4639.1,0.001]
[1756313648048,9.31044405,4639.2,4639.1,0.001]
[1756313648252,8.99084405,4639.2,4639.1,0.001]
[1756313648454,9.54436618,4639.2,4639.1,0.001]
[1756313649469,5.81706618,4639.2,4639.1,0.293]
[1756313649629,5.60106466,4639.2,4639.1,0.7473]
[1756313649829,5.60106466,4639.2,4639.1,0.001]
[1756313650650,5.60106466,4639.2,4639.1,0.7473]
[1756313651433,5.60106466,4639.2,4639.1,0.001]
[1756313652573,5.60106466,4639.2,4639.1,0.293]
[1756313652784,5.60106466,4639.2,4639.1,0.7473]
[1756313653647,12.66106466,4639.2,4639.1,0.7473]
[1756313653955,7.50552061,4639.2,4639.1,0.7473]
[1756313654530,7.39752061,4639.2,4639.1,0.7473]
[1756313655158,9.55306466,4639.2,4639.1,0.7473]
[1756313655462,9.32354405,4639.2,4639.1,0.001]
[1756313655887,9.32354405,4639.2,4639.1,0.293]
[1756313656197,9.32354405,4639.2,4639.1,0.7473]
[1756313658295,9.32354405,4639.2,4639.1,0.293]
[1756313658665,9.66101382,4639.2,4639.1,0.293]
[1756313658968,9.66101382,4639.2,4639.1,0.001]
[1756313659395,9.66101382,4639.2,4639.1,0.2993]
[1756313659560,9.66101382,4639.2,4639.1,0.7707]
[1756313660280,9.66101382,4639.2,4639.1,0.001]
[1756313660483,9.66441382,4639.2,4639.1,0.001]
[1756313661311,7.50546977,4639.2,4639.1,0.7707]
[1756313661514,7.39746977,4639.2,4639.1,0.7707]
[1756313662793,0.33746977,4639.2,4639.1,0.7707]
[1756313665275,0.108,4639.5,4639.1,0.7707]
[1756313665471,0.108,4639.5,4639.2,0.4714]
[1756313665685,0.108,4639.9,4639.2,0.5794]
[1756313665890,0.108,4639.6,4639.2,4.1794]
[1756313666067,2.26336816,4639.6,4639.2,4.1794]
[1756313666269,0.108,4639.6,4639.5,0.2983]
[1756313667304,0.108,4639.6,4639.5,0.7697]
[1756313667596,0.108,4639.6,4639.5,0.7707]
[1756313668293,3.708,4640.1,4639.5,0.7707]
[1756313668477,2.15522939,4639.9,4639.5,0.7707]
[1756313668680,0.33743009,4640.0,4639.5,0.7707]
[1756313668889,2.15525278,4639.9,4639.6,0.4714]
[1756313669096,2.26325278,4639.9,4639.6,0.4714]
[1756313669474,2.23325278,4639.9,4639.6,0.4714]
[1756313669893,0.108,4639.9,4639.8,0.2983]
[1756313670100,0.02,4640.8,4640.7,18.9913825]
[1756313670299,0.022,4641.8,4640.9,0.792]
[1756313670500,0.022,4641.8,4641.1,2.94666161]
[1756313670700,0.022,4641.8,4641.1,7.24366126]
[1756313670900,0.022,4641.8,4641.1,7.71506126]
[1756313673097,0.022,4641.8,4641.1,10.71506126]
[1756313673911,0.022,4641.8,4641.1,6.19506126]
[1756313674104,0.022,4641.8,4641.1,10.97700489]
[1756313674487,0.022,4641.8,4641.1,11.76900489]
[1756313676696,0.022,4641.8,4641.1,11.77100489]
[1756313677226,0.022,4641.8,4641.1,11.76900489]
[1756313679118,0.022,4641.8,4641.1,8.04500489]
[1756313679422,0.022,4641.8,4641.1,10.97300489]
[1756313679794,0.022,4641.8,4641.1,7.25300489]
[1756313679996,0.022,4641.8,4641.1,10.97300489]
[1756313680598,0.022,4641.8,4641.1,7.25300489]
[1756313680800,0.022,4641.8,4641.1,10.97300489]
[1756313681923,0.022,4641.8,4641.1,10.97200489]
[1756313685127,0.022,4641.8,4641.1,7.25300489]
[1756313685333,0.022,4641.8,4641.1,10.96700489]
[1756313685924,0.022,4641.8,4641.1,11.75900489]
[1756313687444,0.022,4641.8,4641.1,11.75500489]
[1756313689302,0.022,4641.8,4641.1,19.149618]
[1756313692107,0.022,4641.8,4641.1,19.235991]
[1756313692656,0.002,4642.3,4641.1,19.235991]
[1756313692657,1e-08,4642.3,4642.2,2.94615104]
[1756313692954,1e-08,4642.3,4642.2,19.00037925]
[1756313693152,1e-08,4642.3,4642.2,19.30047925]
[1756313693302,1e-08,4642.3,4642.2,8.19886614]
[1756313693503,1e-08,4642.3,4642.2,19.40947925]
[1756313694037,1e-08,4642.3,4642.2,19.85117925]
[1756313694403,1e-08,4642.3,4642.2,16.14317925]
[1756313694602,1e-08,4642.3,4642.2,3.91915104]